bitfinex-derivatives/quotes_ETHF0:USTF0_20240904
["timestamp","ask_amount","ask_price","bid_price","bid_amount"]
[1725450790854,0.00624428,2402.0,2401.9,0.41639]
[1725450791050,0.73624428,2402.0,2401.9,0.41639]
[1725450791348,1.09664428,2402.0,2401.9,0.41639]
[1725450791549,0.36454428,2402.0,2401.9,0.41639]
[1725450793170,0.00624428,2402.0,2401.9,0.41639]
[1725450794651,0.42262428,2402.0,2401.9,0.41639]
[1725450795456,0.00624428,2402.0,2401.9,4.57959]
[1725450795859,0.00624428,2402.0,2401.9,0.41639]
[1725450796047,0.00624428,2402.0,2401.9,4.57959]
[1725450796247,0.7321,2402.4,2401.9,4.57959]
[1725450796248,0.097,2402.7,2402.6,0.41627]
[1725450796451,0.209,2402.8,2402.6,0.41627]
[1725450796452,0.41624,2402.8,2402.6,0.41626]
[1725450796645,0.79914,2402.8,2402.6,0.41627]
[1725450796956,0.79914,2402.8,2402.7,0.41626]
[1725450797358,0.79914,2402.8,2402.5,2.88]
[1725450797359,0.79915,2402.8,2402.6,0.41626]
[1725450797656,0.3829,2402.8,2402.7,0.41626]
[1725450797856,0.3829,2402.8,2402.5,0.00624428]
[1725450797857,0.79914,2402.8,2402.5,0.00624428]
[1725450798095,0.79914,2402.8,2402.6,0.41627]
[1725450798557,0.41626,2402.7,2402.5,0.42252428]
[1725450799062,0.41626,2402.7,2402.5,0.42251428]
[1725450799555,0.41626,2402.7,2402.6,0.41627]
[1725450799759,0.41626,2402.7,2402.5,0.42252428]
[1725450799959,1.42351,2402.8,2402.5,0.00624428]
[1725450800149,0.41627,2402.6,2402.5,0.00624428]
[1725450800352,1.42351,2402.8,2402.5,0.00624428]
[1725450800551,0.41627,2402.6,2402.5,0.00624428]
[1725450800751,0.41627,2402.6,2402.5,2.88624428]
[1725450800948,0.41626,2402.7,2402.5,3.30252428]
[1725450801155,1.42351,2402.8,2402.5,2.88624428]
[1725450801356,0.41627,2402.7,2402.5,3.30253428]
[1725450801554,1.42351,2402.8,2402.5,2.88624428]
[1725450801555,0.41627,2402.6,2402.5,2.88624428]
[1725450802762,1.42351,2402.8,2402.5,3.30252428]
[1725450803057,0.41627,2402.6,2402.5,3.30252428]
[1725450804871,0.41627,2402.6,2402.5,2.88624428]
[1725450805157,0.41627,2402.6,2402.5,0.00624428]
[1725450805963,1.45696,2402.6,2402.5,0.00624428]
[1725450806463,1.84456,2402.6,2402.5,0.00624428]
[1725450807560,6.00696,2402.6,2402.5,0.00624428]
[1725450808154,15.92765,2402.6,2402.1,0.097]
[1725450808912,0.41639,2401.9,2401.8,0.4582]
[1725450808926,0.41639,2401.9,2401.8,0.3612]
[1725450808951,1.04094,2402.1,2401.7,0.3705]
[1725450808952,0.41641,2401.8,2401.7,0.3705]
[1725450809563,1.45745,2401.8,2401.7,0.3705]
[1725450809866,0.41644,2401.7,2401.5,3.67730428]
[1725450810465,0.41644,2401.7,2401.5,3.26084428]
[1725450810661,3.2078,2401.7,2401.5,3.26084428]
[1725450810969,3.62424,2401.7,2401.5,3.26084428]
[1725450812365,3.62424,2401.7,2401.5,2.88624428]
[1725450812366,0.41645,2401.6,2401.5,2.88624428]
[1725450813664,0.78335,2401.6,2401.5,2.88624428]
[1725450814260,1.82447,2401.6,2401.5,0.00624428]
[1725450814460,3.24819,2401.6,2401.5,0.00624428]
[1725450814650,7.41219,2401.6,2401.5,0.00624428]
[1725450816068,13.41219,2401.6,2401.5,0.00624428]
[1725450816375,2.49912,2401.2,2401.1,0.097]
[1725450816553,2.49912,2401.2,2400.9,3.2647]
[1725450816554,0.41655,2401.0,2400.9,3.2647]
[1725450817266,0.41655,2401.0,2400.9,0.3847]
[1725450817267,1.45793,2401.0,2400.9,0.3847]
[1725450818867,0.41659,2400.8,2400.7,0.00624428]
[1725450819166,3.62439,2400.8,2400.7,0.00624428]
[1725450819976,4.66586,2400.8,2400.7,0.00624428]
[1725450822280,0.41658,2400.9,2400.8,0.41659]
[1725450822675,0.41658,2400.9,2400.7,3.24084428]
[1725450822947,1.40156,2401.1,2400.7,3.65743428]
[1725450822948,0.41659,2400.8,2400.7,3.65743428]
[1725450823394,0.41659,2400.8,2400.7,3.30283428]
[1725450823978,0.41659,2400.8,2400.7,2.88624428]
[1725450824670,0.41659,2400.8,2400.7,0.00624428]
[1725450824865,0.41658,2400.9,2400.8,0.41659]
[1725450825064,0.41659,2400.8,2400.7,0.00624428]
[1725450825268,0.41659,2400.8,2400.7,0.01740793]
[1725450825463,1.45806,2400.8,2400.7,0.01740793]
[1725450825670,2.49953,2400.8,2400.7,0.01740793]
[1725450825868,3.26163,2400.8,2400.7,0.01740793]
[1725450827376,13.42723,2400.8,2400.7,0.01740793]
[1725450828676,5.56753284,2401.2,2400.7,0.01740793]
[1725450828677,6.69273284,2401.2,2400.7,0.01740793]
[1725450828880,0.41654,2401.1,2400.9,0.41656]
[1725450829181,0.41654,2401.1,2401.0,2.88]
[1725450829476,7.10925284,2401.2,2401.0,0.42771365]
[1725450829682,3.90145284,2401.2,2401.0,0.42771365]
[1725450829995,3.90145284,2401.2,2401.1,0.3878]
[1725450830330,3.21404428,2401.2,2401.1,0.80433]
[1725450830575,0.00624428,2401.2,2401.1,4.98029365]
[1725450831779,0.00624428,2401.2,2401.1,6.02163365]
[1725450832182,0.00624428,2401.2,2401.1,12.02163365]
[1725450834777,3.5777,2401.8,2401.6,0.41643]
[1725450834980,3.5777,2401.8,2401.3,1.04125]
[1725450834981,0.3699,2401.8,2401.7,0.41643]
[1725450835280,3.5777,2401.8,2401.7,0.41643]
[1725450835581,3.2078,2401.8,2401.7,0.42759365]
[1725450835778,3.62421,2401.8,2401.7,0.01116365]
[1725450840197,7.78821,2401.8,2401.7,0.01116365]
[1725450840885,8.82925,2401.8,2401.7,0.01116365]
[1725450841394,1.04108,2401.7,2401.2,0.4837]
[1725450841715,0.4165,2401.3,2401.2,0.3867]
[1725450842082,0.7903,2401.3,2401.2,0.3867]
[1725450842559,0.7903,2401.3,2400.9,0.88466]
[1725450842560,0.41653,2401.2,2400.9,0.88466]
[1725450843024,0.3738,2401.3,2400.9,1.14526]
[1725450843107,0.41653,2401.2,2400.9,1.14526]
[1725450843920,0.41653,2401.2,2400.9,0.3576]
[1725450843921,1.0413,2401.2,2400.9,0.3576]
[1725450844079,0.41654,2401.1,2400.9,0.3576]
[1725450844881,0.41652,2401.2,2400.9,0.77417]
[1725450845073,0.41652,2401.2,2400.9,0.77415]
[1725450846486,0.41652,2401.2,2401.0,0.41655]
[1725450846690,0.79031,2401.3,2401.0,0.41655]
[1725450846889,0.79031,2401.3,2401.1,0.41653]
[1725450848883,0.3738,2401.3,2401.1,0.41653]
[1725450849087,3.2078,2401.4,2401.0,2.88]
[1725450849283,0.41648,2401.5,2401.3,0.4165]
[1725450849685,3.2078,2401.4,2401.0,2.977]
[1725450849984,3.2078,2401.4,2401.3,0.4165]
[1725450850688,0.41648,2401.5,2401.3,0.4165]
[1725450851281,3.62429,2401.4,2401.2,0.41651]
[1725450852294,3.2078,2401.4,2401.2,0.41651]
[1725450852785,0.41648,2401.5,2401.2,0.41651]
[1725450852989,3.2078,2401.3,2401.2,0.41651]
[1725450853186,0.41648,2401.5,2401.2,0.41651]
[1725450853494,0.41648,2401.5,2401.3,0.4165]
[1725450853988,0.41648,2401.5,2401.2,0.4165]
[1725450854192,0.41648,2401.4,2401.2,0.4165]
[1725450856185,0.41647,2401.5,2401.2,0.4165]
[1725450856386,0.41648,2401.4,2401.3,0.3693]
[1725450857192,0.4165,2401.3,2401.1,0.41652]
[1725450857410,0.41652,2401.2,2401.0,0.41654]
[1725450857589,1.13223,2401.2,2401.0,0.41655]
[1725450857796,1.49663,2401.2,2401.0,0.41655]
[1725450858230,1.0801,2401.2,2400.9,0.7289]
[1725450858385,1.49663,2401.2,2401.0,0.41655]
[1725450859292,1.49663,2401.2,2400.9,0.7289]
[1725450859499,1.49663,2401.2,2401.0,0.41655]
[1725450859996,0.7157,2401.2,2401.1,0.41653]
[1725450860694,0.7157,2401.2,2401.0,2.88]
[1725450860895,0.7157,2401.2,2401.1,0.41653]
[1725450861287,0.41649,2401.4,2401.2,0.4165]
[1725450862101,0.7327,2401.5,2401.2,0.4165]
[1725450862294,0.41649,2401.4,2401.2,0.4165]
[1725450866694,3.2078,2401.3,2400.9,0.7289]
[1725450866893,0.41659,2400.8,2400.7,0.10324428]
[1725450867093,0.41659,2400.8,2400.7,0.00624428]
[1725450867404,1.82786,2400.8,2400.7,0.00624428]
[1725450867710,0.78639,2400.8,2400.7,0.00624428]
[1725450868298,0.3698,2400.8,2400.7,0.42284428]
[1725450870805,0.78639,2400.8,2400.7,0.42284428]
[1725450871004,0.78639,2400.8,2400.7,0.00624428]
[1725450873117,1.14489,2400.8,2400.7,0.00624428]
[1725450873521,1.14489,2400.8,2400.7,0.42284428]
[1725450873522,0.7283,2400.8,2400.7,0.42284428]
[1725450874656,0.3698,2400.8,2400.7,0.42284428]
[1725450875017,4.52000856,2401.2,2400.9,0.41657]
[1725450875018,0.77504,2401.1,2400.9,0.41657]
[1725450875419,0.77504,2401.1,2400.9,0.79147]
[1725450877124,0.41655,2401.0,2400.9,0.3749]
[1725450878285,0.77505,2401.1,2400.9,0.3749]
[1725450878425,0.41655,2401.1,2400.9,0.79146]
[1725450879123,0.41655,2401.1,2400.9,0.3749]
[1725450879331,0.41655,2401.0,2400.9,0.3749]
[1725450879621,3.62435,2401.0,2400.8,0.80478]
[1725450881126,3.62436,2401.0,2400.8,0.80478]
[1725450881391,3.2078,2401.0,2400.8,0.80478]
[1725450881741,3.62436,2401.0,2400.8,0.80478]
[1725450882728,3.62436,2401.0,2400.9,0.41657]
[1725450882934,3.2078,2401.0,2400.9,0.41657]
[1725450883128,3.62436,2401.0,2400.9,0.41657]
[1725450883325,0.41657,2400.9,2400.8,0.80478]
[1725450883821,1.45806,2400.8,2400.7,0.00624428]
[1725450884018,2.55836,2400.8,2400.7,0.00624428]
[1725450886231,3.59983,2400.8,2400.7,0.00624428]
[1725450888271,2.55836,2400.8,2400.7,0.00624428]
[1725450890029,0.3572,2400.8,2400.7,0.42284428]
[1725450890221,0.41658,2400.9,2400.7,10.58844428]
[1725450890429,3.2078,2401.0,2400.8,4.5431]
[1725450890629,3.62436,2401.0,2400.8,1.17168]
[1725450891026,3.62436,2401.0,2400.8,5.33648]
[1725450891858,3.62436,2401.0,2400.9,0.41657]
[1725450892187,3.62436,2401.0,2400.9,4.58137]
[1725450892432,3.62436,2401.0,2400.9,4.1648]
[1725450892838,3.62436,2401.0,2400.9,4.58137]
[1725450893234,0.41657,2400.9,2400.8,0.7551]
[1725450893433,3.2078,2401.0,2400.8,1.17169]
[1725450893640,3.2078,2401.0,2400.8,0.7551]
[1725450893995,3.62435,2401.0,2400.8,1.17167]
[1725450894144,3.2078,2401.0,2400.9,0.41657]
[1725450894842,3.2078,2401.0,2400.8,0.7551]
[1725450894843,3.62435,2401.0,2400.8,1.17167]
[1725450895136,0.41655,2401.0,2400.8,1.17167]
[1725450895531,0.41655,2401.0,2400.9,0.41657]
[1725450895733,0.79924,2401.1,2400.9,0.41657]
[1725450897337,0.41655,2401.0,2400.9,0.41657]
[1725450897541,0.41655,2401.0,2400.8,1.17167]
[1725450898042,3.62437,2400.9,2400.8,1.17167]
[1725450898244,3.2078,2400.9,2400.7,0.42284428]
[1725450898538,0.79269,2400.8,2400.7,0.00624428]
[1725450899728,0.79269,2400.8,2400.7,0.42284428]
[1725450899729,0.3761,2400.8,2400.7,0.42284428]
[1725450899933,3.62438,2400.9,2400.7,0.42284428]
[1725450900332,3.62438,2400.9,2400.8,0.3546]
[1725450900741,3.62438,2400.9,2400.8,0.77119]
[1725450900937,0.3546,2401.0,2400.9,0.41657]
[1725450900938,0.77116,2401.0,2400.9,0.41657]
[1725450901131,0.41655,2401.0,2400.9,0.41656]
[1725450901420,0.41657,2400.9,2400.8,0.7102]
[1725450901545,0.41659,2400.8,2400.7,0.42284428]
[1725450902332,3.62438,2400.9,2400.7,0.42284428]
[1725450903032,3.62438,2400.9,2400.8,0.41659]
[1725450903033,3.62437,2400.9,2400.8,0.41659]
[1725450903534,0.41657,2400.9,2400.8,0.41659]
[1725450904437,0.3827,2401.1,2401.0,0.41655]
[1725450904629,0.79923,2401.1,2401.0,0.41655]
[1725450904830,0.3827,2401.1,2401.0,0.41655]
[1725450905040,0.79925,2401.1,2400.9,0.41656]
[1725450905339,0.41656,2401.0,2400.8,0.41659]
[1725450905536,0.7482,2401.0,2400.9,0.41657]
[1725450905736,1.16476,2401.0,2400.9,0.41657]
[1725450905942,0.7482,2401.0,2400.9,0.41657]
[1725450906557,0.3827,2401.1,2401.0,0.41655]
[1725450907041,0.79923,2401.1,2401.0,0.41655]
[1725450907835,7.10300856,2401.2,2401.1,0.41653]
[1725450908029,6.68648856,2401.2,2401.1,0.41653]
[1725450908440,6.68648856,2401.2,2401.1,1.15653]
[1725450908441,3.47868856,2401.2,2401.1,1.15653]
[1725450908631,3.47868856,2401.2,2401.1,2.35653]
[1725450908939,0.00624428,2402.0,2401.2,1.04129]
[1725450909141,3.2078,2401.8,2401.7,1.61643]
[1725450910104,0.41641,2401.8,2401.7,1.2]
[1725450910638,3.2078,2401.9,2401.7,1.2]
[1725450910843,3.2078,2401.9,2401.7,1.61643]
[1725450910844,3.6242,2401.9,2401.7,1.61643]
[1725450911040,1.81470428,2402.0,2401.7,1.61643]
[1725450911041,0.39414428,2402.0,2401.7,1.61643]
[1725450911247,0.39414428,2402.0,2401.8,0.4164]
[1725450911435,0.81052428,2402.0,2401.8,0.4164]
[1725450911636,0.81052428,2402.0,2401.7,1.61641]
[1725450912140,0.81052428,2402.0,2401.8,0.41641]
[1725450912645,0.4164,2401.9,2401.7,0.41642]
[1725450912950,0.39414428,2402.0,2401.7,0.41642]
[1725450913143,0.39414428,2402.0,2401.8,0.4164]
[1725450913442,0.81052428,2402.0,2401.8,0.4164]
[1725450913640,0.81052428,2402.0,2401.7,0.41642]
[1725450914542,0.00624428,2402.0,2401.9,4.66518]
[1725450914758,0.00624428,2402.0,2401.9,5.02418]
[1725450914946,0.00624428,2402.0,2401.9,15.18738]
[1725450915678,0.306,2402.9,2402.7,0.41624]
[1725450916217,0.306,2402.9,2402.3,1.04082]
[1725450916218,0.3639,2403.2,2402.9,0.41621]
[1725450916525,0.3639,2403.2,2402.8,3.2632]
[1725450916526,0.78007,2403.2,2402.8,3.2632]
[1725450916657,0.78007,2403.2,2402.6,0.097]
[1725450916658,0.3639,2403.2,2402.7,0.41624]
[1725450916755,0.3639,2403.2,2402.6,2.977]
[1725450916756,3.2078,2403.1,2402.6,2.88]
[1725450916944,0.80601,2403.0,2402.7,0.00624428]
[1725450917349,0.41622,2402.9,2402.7,0.00624428]
[1725450917541,0.41624,2402.8,2402.7,0.00624428]
[1725450917750,0.41623,2402.9,2402.7,0.00624428]
[1725450917950,0.41624,2402.8,2402.7,0.00624428]
[1725450918254,4.01004,2402.8,2402.7,0.00624428]
[1725450919903,0.80224,2402.8,2402.7,0.00624428]
[1725450920835,0.386,2402.8,2402.7,0.00624428]
[1725450922051,3.2078,2403.1,2402.7,3.24904428]
[1725450922242,0.41619,2403.1,2402.8,0.3557]
[1725450922643,0.41618,2403.2,2402.8,0.77193]
[1725450923555,0.41619,2403.1,2402.8,0.77193]
[1725450924556,0.41621,2403.0,2402.8,0.3557]
[1725450924752,0.3599,2402.9,2402.7,0.00624428]
[1725450924944,0.41624,2402.8,2402.7,0.00624428]
[1725450925145,0.77613,2402.9,2402.7,0.00624428]
[1725450925345,0.3599,2402.9,2402.7,0.42249428]
[1725450925875,1.04041,2403.3,2402.7,2.88624428]
[1725450925946,0.3599,2403.3,2402.9,2.88]
[1725450926252,0.3599,2403.3,2403.1,0.41618]
[1725450926450,0.3599,2403.3,2403.2,0.3861]
[1725450928357,0.41618,2403.2,2403.0,0.7905]
[1725450928550,0.41618,2403.2,2403.0,0.3743]
[1725450928774,0.41618,2403.2,2403.0,0.7905]
[1725450929172,0.41619,2403.1,2403.0,0.3743]
[1725450929718,0.41621,2403.0,2402.8,0.3632]
[1725450929724,1.04043,2403.2,2402.8,0.77943]
[1725450929725,0.4162,2403.1,2402.8,0.77943]
[1725450929809,0.41618,2403.2,2402.9,0.41621]
[1725450930548,0.41619,2403.1,2402.9,0.41621]
[1725450930950,0.41618,2403.2,2402.9,0.41621]
[1725450931164,0.41618,2403.2,2403.0,0.4162]
[1725450931356,0.41618,2403.2,2402.8,0.3632]
[1725450931552,0.77606,2403.3,2403.0,0.41619]
[1725450931746,0.41617,2403.2,2403.0,0.41619]
[1725450931994,0.3599,2403.3,2402.8,0.3632]
[1725450932311,0.4162,2403.1,2402.8,1.15373]
[1725450932551,0.4162,2403.1,2402.9,0.41621]
[1725450933056,0.41618,2403.2,2402.8,0.7375]
[1725450933256,0.41618,2403.2,2403.0,0.4162]
[1725450933463,0.41619,2403.1,2402.9,0.41621]
[1725450934752,0.41624,2402.8,2402.7,3.21404428]
[1725450935863,0.78894,2402.8,2402.7,3.21404428]
[1725450936064,0.78894,2402.8,2402.7,3.63030428]
[1725450936357,0.41621,2403.0,2402.7,3.21404428]
[1725450936661,0.41622,2402.9,2402.8,0.41623]
[1725450936867,0.41622,2402.9,2402.7,3.63028428]
[1725450937053,0.41624,2402.8,2402.7,3.63028428]
[1725450937254,0.41624,2402.8,2402.7,3.63030428]
[1725450937455,1.17153,2402.9,2402.7,3.63030428]
[1725450937858,0.41624,2402.8,2402.7,3.21404428]
[1725450938756,1.17153,2402.9,2402.7,3.63030428]
[1725450940162,0.80662,2403.0,2402.8,0.41624]
[1725450940361,0.80662,2403.0,2402.7,3.21404428]
[1725450940362,0.3904,2403.0,2402.7,3.21404428]
[1725450940564,0.80661,2403.0,2402.7,3.21404428]
[1725450941161,0.80661,2403.0,2402.9,0.41622]
[1725450941471,0.3904,2403.0,2402.9,0.41622]
[1725450941958,0.3904,2403.0,2402.7,3.21404428]
[1725450941959,0.80662,2403.0,2402.8,0.41623]
[1725450942856,0.41622,2402.9,2402.7,3.21404428]
[1725450943060,0.3904,2403.0,2402.7,3.63028428]
[1725450943267,0.41624,2402.8,2402.7,3.63030428]
[1725450943564,1.45684,2402.8,2402.7,0.00624428]
[1725450943760,0.77084,2402.8,2402.7,0.00624428]
[1725450944565,0.77723,2402.9,2402.7,0.42250428]
[1725450944870,0.41624,2402.8,2402.7,0.42250428]
[1725450945067,0.77724,2402.9,2402.7,0.42250428]
[1725450945261,0.77722,2402.9,2402.8,0.41624]
[1725450945753,0.77722,2402.9,2402.7,0.42248428]
[1725450946062,0.77722,2402.9,2402.8,0.41624]
[1725450946457,0.77722,2402.9,2402.7,0.42248428]
[1725450946961,0.77722,2402.9,2402.7,0.00624428]
[1725450947161,0.77722,2402.9,2402.7,0.42248428]
[1725450947872,0.41624,2402.8,2402.7,0.00624428]
[1725450948367,0.41624,2402.8,2402.7,0.42250428]
[1725450952175,0.77723,2402.9,2402.8,0.41624]
[1725450952366,0.41624,2402.8,2402.7,0.42248428]
[1725450952875,0.80662,2403.0,2402.9,0.41622]
[1725450953166,0.3904,2403.0,2402.7,0.00624428]
[1725450953375,0.80662,2403.0,2402.8,0.41624]
[1725450953572,0.80662,2403.0,2402.9,0.3597]
[1725450953775,0.80662,2403.0,2402.9,0.75]
[1725450954267,0.80662,2403.0,2402.9,1.16622]
[1725450954974,0.3904,2403.0,2402.9,1.16622]
[1725450955167,0.8066,2403.0,2402.9,1.16622]
[1725450955362,4.01359,2403.1,2403.0,0.4162]
[1725450955781,4.01359,2403.1,2402.9,0.75]
[1725450955782,4.0136,2403.1,2402.9,1.16621]
[1725450956875,0.3852,2403.0,2402.7,0.00624428]
[1725450957066,0.41624,2402.8,2402.7,0.00624428]
[1725450957265,0.41624,2402.8,2402.7,0.42250428]
[1725450957470,0.41624,2402.8,2402.7,0.00624428]
[1725450957672,0.362,2402.9,2402.7,0.42250428]
[1725450957882,0.77823,2402.9,2402.7,0.42250428]
[1725450958479,0.77823,2402.9,2402.8,0.78664]
[1725450958670,0.77823,2402.9,2402.8,1.15694]
[1725450959064,0.3852,2403.0,2402.9,0.41622]
[1725450959336,4.01359,2403.1,2403.0,0.4162]
[1725450959337,3.2078,2403.1,2403.0,0.4162]
[1725450960001,3.62399,2403.1,2403.0,0.4162]
[1725450960666,3.2078,2403.1,2403.0,0.4162]
[1725450962080,3.62399,2403.1,2403.0,0.4162]
[1725450962269,3.2078,2403.1,2402.9,1.2]
[1725450962466,0.4162,2403.0,2402.9,1.61622]
[1725450962668,3.624,2403.1,2403.0,0.4162]
[1725450963568,3.2078,2403.1,2403.0,0.4162]
[1725450963779,0.3701,2403.3,2403.2,0.41617]
[1725450964166,0.78625,2403.3,2403.2,0.41617]
[1725450964370,0.78625,2403.3,2403.2,1.16477]
[1725450964978,0.3701,2403.3,2403.2,1.16477]
[1725450965270,4.61803,2403.5,2403.4,0.41613]
[1725450965271,3.5777,2403.5,2403.4,0.41613]
[1725450965472,0.41613,2403.4,2403.3,1.61614]
[1725450965668,3.5777,2403.5,2403.4,0.41613]
[1725450965669,3.2078,2403.5,2403.4,0.41613]
[1725450967277,0.7506,2403.7,2403.2,8.25983]
[1725450967278,0.8016,2403.7,2403.2,8.25983]
[1725450967473,0.3855,2403.7,2403.6,0.4161]
[1725450967737,0.41612,2403.5,2403.4,2.88]
[1725450968065,0.41612,2403.5,2403.2,3.9564]
[1725450968066,1.0403,2403.5,2403.2,3.9564]
[1725450968449,1.0403,2403.5,2403.0,0.0326]
[1725450968450,0.41619,2403.1,2403.0,0.0326]
[1725450968872,0.41619,2403.1,2403.0,0.4488]
[1725450969071,0.41619,2403.1,2403.0,0.0326]
[1725450970091,0.41619,2403.1,2403.0,0.4488]
[1725450971580,0.78518,2403.2,2403.1,0.41619]
[1725450972181,0.41619,2403.1,2403.0,0.0326]
[1725450972376,1.45666,2403.1,2403.0,0.0326]
[1725450972689,1.83176,2403.1,2403.0,0.0326]
[1725450973586,3.99298,2403.2,2403.0,0.4488]
[1725450973834,3.5768,2403.2,2403.0,0.0326]
[1725450974021,0.41619,2403.1,2403.0,3.3288]
[1725450974365,0.41619,2403.1,2403.0,0.0326]
[1725450974837,0.41619,2403.1,2403.0,0.4488]
[1725450974980,0.41619,2403.1,2403.0,0.0326]
[1725450976002,0.41619,2403.1,2403.0,0.4488]
[1725450976287,1.45666,2403.1,2403.0,0.0326]
[1725450976706,0.41619,2403.1,2403.0,0.0326]
[1725450977490,1.45666,2403.1,2403.0,0.0326]
[1725450978785,1.45666,2403.1,2402.7,0.42248428]
[1725450978786,1.45684,2402.8,2402.7,0.00624428]
[1725450978983,4.66464,2402.8,2402.7,0.00624428]
[1725450979192,5.05644,2402.8,2402.7,0.00624428]
[1725450979395,4.01584,2402.8,2402.7,0.00624428]
[1725450979692,4.01584,2402.8,2402.7,0.42250428]
[1725450979888,4.01584,2402.8,2402.7,0.00624428]
[1725450980701,4.01584,2402.8,2402.7,3.66490428]
[1725450980890,0.80804,2402.8,2402.7,3.66490428]
[1725450981088,0.7457,2403.0,2402.7,3.24864428]
[1725450981089,0.77262,2403.0,2402.7,3.24864428]
[1725450981287,0.3564,2403.0,2402.9,0.41622]
[1725450981492,0.7726,2403.0,2402.9,0.41622]
[1725450982412,0.7726,2403.0,2402.8,0.78712]
[1725450982590,1.1479,2403.0,2402.8,0.78712]
[1725450982791,1.1479,2403.0,2402.9,0.41622]
[1725450983496,1.1479,2403.0,2402.7,0.36864428]
[1725450983497,0.41624,2402.8,2402.7,0.36864428]
[1725450983909,1.14792,2403.0,2402.7,0.36864428]
[1725450984193,0.3564,2403.0,2402.9,0.41622]
[1725450985393,4.01579,2403.1,2402.9,0.41622]
[1725450985595,4.01579,2403.1,2403.0,0.7963]
[1725450985891,3.5996,2403.1,2403.0,0.7963]
[1725450986092,0.41616,2403.3,2403.0,4.5417]
[1725450986298,0.41616,2403.3,2403.0,0.3801]
[1725450986544,0.41616,2403.3,2403.2,0.41617]
[1725450986792,1.13735,2403.4,2403.3,0.41615]
[1725450987801,0.7212,2403.4,2403.3,0.41615]
[1725450988102,1.13733,2403.4,2403.3,0.41615]
[1725450990794,1.13733,2403.4,2403.2,0.41616]
[1725450991598,0.41615,2403.3,2403.1,3.65967]
[1725450991794,0.41615,2403.3,2403.1,0.77967]
[1725450991993,1.13735,2403.4,2403.2,0.41616]
[1725450992398,0.41615,2403.3,2403.2,0.41616]
[1725450992894,1.13735,2403.4,2403.2,0.41616]
[1725450993337,0.41616,2403.3,2403.1,0.77968]
[1725450993801,0.41619,2403.1,2403.0,0.79629]
[1725450994188,1.04039,2403.3,2403.0,0.7963]
[1725450994189,0.41618,2403.2,2403.0,0.7963]
[1725450995096,0.41619,2403.1,2403.0,0.3801]
[1725450995696,0.41618,2403.2,2403.0,0.7963]
[1725450996289,1.76154,2403.4,2403.0,0.79629]
[1725450996491,0.41617,2403.2,2403.0,0.79629]
[1725450996690,0.41619,2403.1,2403.0,0.79629]
[1725450997026,0.41619,2403.1,2402.9,0.3575]
[1725450997354,3.2078,2403.2,2402.9,0.3575]
[1725450997355,0.7436,2403.0,2402.9,0.3575]
[1725450997494,0.7436,2403.0,2402.7,0.39664428]
[1725450997693,0.41624,2402.8,2402.7,0.39664428]
[1725450997997,0.41624,2402.8,2402.7,1.59664428]
[1725450998904,0.41624,2402.8,2402.7,2.01290428]
[1725450999090,0.41624,2402.8,2402.7,1.59664428]
[1725450999695,0.41622,2402.9,2402.8,0.41623]
[1725451000401,0.41622,2402.9,2402.7,0.39664428]
[1725451000402,0.41622,2402.9,2402.7,0.81288428]
[1725451000797,0.7436,2403.0,2402.7,0.81288428]
[1725451000798,0.41624,2402.8,2402.7,0.81288428]
[1725451001499,0.41623,2402.9,2402.8,0.41624]
[1725451001693,1.15982,2403.0,2402.8,0.41624]
[1725451002202,0.41623,2402.9,2402.7,0.81288428]
[1725451007239,0.41624,2402.8,2402.7,0.81288428]
[1725451007807,0.41623,2402.9,2402.7,0.81288428]
[1725451008600,0.41624,2402.8,2402.7,0.81288428]
[1725451008805,0.41624,2402.9,2402.7,0.81288428]
[1725451009410,0.41624,2402.9,2402.8,0.41624]
[1725451010103,3.575,2403.0,2402.7,0.39664428]
[1725451010304,1.15096,2403.3,2402.9,1.04056]
[1725451010495,3.5901,2403.4,2402.9,1.04056]
[1725451010496,3.62394,2403.4,2403.3,0.41615]
[1725451011101,3.62394,2403.4,2403.2,0.41616]
[1725451011102,0.41616,2403.3,2403.2,0.41616]
[1725451012216,1.412,2403.5,2403.1,0.78847]
[1725451012217,0.41617,2403.2,2403.1,0.78847]
[1725451012408,0.77927,2403.2,2403.1,0.78847]
[1725451012638,0.3631,2403.2,2402.8,2.88]
[1725451013084,0.3815,2403.1,2403.0,0.4162]
[1725451013093,0.3815,2403.1,2402.8,0.7803]
[1725451013094,4.62978,2403.1,2402.9,0.55430174]
[1725451013308,4.62978,2403.1,2402.8,0.80563]
[1725451013309,0.41622,2402.9,2402.8,0.80563]
[1725451013516,0.41622,2402.9,2402.8,0.3894]
[1725451013820,0.41622,2402.9,2402.7,0.42249428]
[1725451014007,0.41622,2402.9,2402.7,0.81189428]
[1725451014206,0.41624,2402.8,2402.7,0.39564428]
[1725451014408,0.41623,2402.9,2402.7,0.81188428]
[1725451014813,0.79774,2402.8,2402.7,0.81188428]
[1725451015110,0.79774,2402.8,2402.7,0.39564428]
[1725451015311,5.04614,2402.8,2402.7,0.00624428]
[1725451015508,13.49144,2402.8,2402.7,0.00624428]
[1725451015723,13.49144,2402.8,2402.3,0.097]
[1725451015724,0.41631,2402.4,2402.3,0.097]
[1725451016013,1.04075,2402.5,2402.0,4.29221183]
[1725451016014,0.41634,2402.3,2402.0,3.6819]
[1725451016178,0.78804,2402.3,2402.1,0.3564]
[1725451017714,0.41634,2402.2,2402.1,0.3564]
[1725451018409,0.41636,2402.1,2402.0,0.38334428]
[1725451021611,3.62415,2402.2,2402.0,0.38334428]
[1725451021812,0.3717,2402.3,2402.1,0.41636]
[1725451022419,0.42256428,2402.4,2402.1,0.41635]
[1725451022714,0.42255428,2402.4,2402.2,0.41634]